fUSD/lending_fUSD_20240204
["ID","MTS","AMOUNT","RATE_DAILY","PERIOD"]
[313272624,1707063060019,-500.0,0.00047123,31]
[313272625,1707063060029,-500.0,0.00047123,31]
[313272626,1707063060038,-576.98048503,0.00047123,31]
[313272627,1707063060047,-500.0,0.00047123,31]
[313272628,1707063060057,-500.0,0.00047123,31]
[313272629,1707063060066,-500.0,0.00047123,31]
[313272630,1707063060075,-500.0,0.00047123,31]
[313272631,1707063060085,-1238.33,0.00047123,31]
[313272632,1707063060094,-500.0,0.00047123,31]
[313272633,1707063060103,-543.53059432,0.00047123,31]
[313272634,1707063060112,-500.0,0.00047123,31]
[313272635,1707063060121,-300.26363291,0.00047123,31]
[313272636,1707063060130,-500.0,0.00047123,31]
[313272637,1707063060139,-500.0,0.00047123,31]
[313272638,1707063060149,-250.87827852,0.00047123,31]
[313272639,1707063060158,-500.0,0.00047123,31]
[313272640,1707063060167,-500.0,0.00047123,31]
[313272641,1707063060176,-500.0,0.00047123,31]
[313272642,1707063060185,-1047.55,0.00047123,31]
[313272643,1707063060194,-500.0,0.00047123,31]
[313272644,1707063060204,-396.26,0.00047164,2]
[313272645,1707063060212,-847.0,0.0004719,2]
[313272646,1707063060221,-150.0,0.000472,18]
[313272647,1707063060230,-588.16615373,0.00047233,23]
[313272648,1707063060243,-666.0,0.00047288,4]
[313272649,1707063060252,-26938.73,0.000473,7]
[313272650,1707063060263,-9110.8,0.000473,7]
[313272651,1707063060272,-14043.86,0.000473,7]
[313272652,1707063060282,-154.55,0.000473,5]
[313272653,1707063060291,-154.55,0.000473,5]
[313272654,1707063060300,-154.55,0.000473,5]
[313272655,1707063060310,-154.55,0.000473,5]
[313272656,1707063060320,-875.45,0.000473,5]
[313272657,1707063060330,-875.45,0.000473,5]
[313272658,1707063060339,-875.45,0.000473,5]
[313272659,1707063060348,-875.45,0.000473,5]
[313272660,1707063060357,-875.45,0.000473,5]
[313272661,1707063060366,-875.45,0.000473,5]
[313272662,1707063060375,-875.45,0.000473,5]
[313272663,1707063060384,-875.45,0.000473,5]
[313272664,1707063060393,-875.45,0.000473,5]
[313272665,1707063060402,-875.45,0.000473,5]
[313272666,1707063060412,-875.45,0.000473,5]
[313272667,1707063060423,-875.45,0.000473,5]
[313272668,1707063060433,-875.45,0.000473,5]
[313272669,1707063060442,-875.45,0.000473,5]
[313272670,1707063060454,-875.45,0.000473,5]
[313272671,1707063060464,-875.45,0.000473,5]
[313272672,1707063060473,-875.45,0.000473,5]
[313272673,1707063060483,-875.45,0.000473,5]
[313272674,1707063060492,-2000.0,0.00047316,120]
[313272675,1707063060502,-2000.0,0.00047316,120]
[313272676,1707063060511,-1829.55202078,0.00047316,120]
[313272677,1707063060521,-150.0,0.00047342,30]
[313272678,1707063060530,-150.0,0.00047342,30]
[313272679,1707063060540,-154.98375475,0.00047383,30]
[313272680,1707063060550,-5000.0,0.00047397,30]
[313272681,1707063060560,-5000.0,0.00047397,55]
[313272682,1707063060569,-1000.0,0.00047397,55]
[313272683,1707063060578,-2000.0,0.000474,2]
[313272684,1707063060586,-153.29405715,0.00047406,30]
[313272685,1707063060596,-588.16615373,0.00047436,23]
[313272686,1707063060605,-16722.22648786,0.0004744,9]
[313272687,1707063060614,-150.0,0.0004744,2]
[313272688,1707063060623,-156.80178584,0.00047461,30]
[313272689,1707063060632,-352.76282289,0.0004747,3]
[313272690,1707063060642,-680.87581448,0.000475,30]
[313272691,1707063060651,-1029.34218176,0.000475,30]
[313272692,1707063060661,-8322.23254026,0.000475,30]
[313272693,1707063060670,-514.67109088,0.000475,30]
[313272694,1707063060679,-231.6019909,0.000475,30]
[313272695,1707063060689,-326.476413,0.000475,37]
[313272696,1707063060699,-1048.89882916,0.000475,30]
[313272697,1707063060707,-172.0,0.0004753,65]
[313272698,1707063060716,-152.0,0.00047546,3]
[313272699,1707063060725,-2055.4,0.00047572,15]
[313272700,1707063060735,-588.16615373,0.00047638,23]
[313272701,1707063060743,-5000.0,0.00047671,30]
[313272702,1707063060753,-544.0045746,0.00047671,31]
[313272703,1707063060762,-1000.0,0.00047671,7]
[313272704,1707063060772,-515.53862604,0.00047671,31]
[313272705,1707063060781,-217.6764994,0.00047671,31]
[313272706,1707063060791,-500.0,0.00047671,31]
[313272707,1707063060800,-500.0,0.00047671,31]
[313272708,1707063060810,-521.63136084,0.00047671,31]
[313272709,1707063060819,-500.0,0.00047671,31]
[313272710,1707063060828,-500.0,0.00047671,31]
[313272711,1707063060838,-630.27,0.00047671,31]
[313272712,1707063060847,-500.0,0.00047671,2]
[313272713,1707063060855,-500.0,0.00047671,31]
[313272714,1707063060864,-500.0,0.00047671,31]
[313272715,1707063060874,-500.0,0.00047671,31]
[313272716,1707063060883,-500.0,0.00047671,31]
[313272717,1707063060894,-601.48225555,0.00047671,31]
[313272718,1707063060904,-477.21268377,0.00047671,31]
[313272719,1707063060916,-500.0,0.00047671,31]
[313272720,1707063060925,-533.36999977,0.00047671,31]
[313272721,1707063060936,-522.1274012,0.00047671,31]
[313272722,1707063060945,-500.0,0.00047671,31]
[313272723,1707063060955,-500.0,0.00047671,31]
[313272724,1707063060964,-500.0,0.00047671,31]
[313272725,1707063060973,-911.45,0.00047671,30]
[313272726,1707063060982,-563.11814932,0.00047671,31]
[313272727,1707063060991,-172.33231393,0.00047671,31]
[313272728,1707063061000,-575.2818452,0.00047671,31]
[313272729,1707063061009,-181.28220891,0.00047671,31]
[313272730,1707063061018,-500.0,0.00047671,31]
[313272731,1707063061027,-574.90837768,0.00047671,31]
[313272732,1707063061036,-619.44,0.00047671,31]
[313272733,1707063061045,-551.29258193,0.00047671,31]
[313272734,1707063061054,-553.79830084,0.00047671,31]
[313272735,1707063061063,-500.0,0.00047671,31]
[313272736,1707063061073,-500.0,0.00047671,7]
[313272737,1707063061083,-500.0,0.00047671,31]
[313272738,1707063061093,-500.0,0.00047671,31]
[313272739,1707063061102,-500.0,0.00047671,30]
[313272740,1707063061111,-1927.47,0.00047671,31]
[313272741,1707063061121,-511.01065991,0.00047671,31]
[313272742,1707063061130,-375.50570169,0.00047671,31]
[313272743,1707063061139,-500.0,0.00047671,31]
[313272744,1707063061148,-590.68271664,0.00047671,31]
[313272745,1707063061158,-1188.46,0.00047671,31]
[313272746,1707063061167,-236.01297307,0.00047671,31]
[313272747,1707063061176,-500.0,0.00047671,31]
[313272748,1707063061186,-1140.37,0.00047671,31]
[313272749,1707063061196,-607.74725741,0.00047671,31]
[313272750,1707063061207,-500.0,0.00047671,31]
[313272751,1707063061216,-604.62460184,0.00047671,31]
[313272752,1707063061226,-500.0,0.00047671,31]
[313272753,1707063061240,-283.42880631,0.00047671,31]
[313272754,1707063061251,-577.01977948,0.00047671,31]
[313272755,1707063061260,-283.68719274,0.00047671,31]
[313272756,1707063061270,-4970.02,0.00047671,31]
[313272757,1707063061283,-777.44,0.00047671,20]
[313272758,1707063061292,-500.0,0.00047671,31]
[313272759,1707063061302,-5000.0,0.00047671,60]
[313272760,1707063061311,-500.0,0.00047671,31]
[313272761,1707063061323,-229.55364234,0.00047671,31]
[313272762,1707063061333,-606.13056283,0.00047671,31]
[313272763,1707063061342,-576.28,0.00047671,31]
[313272764,1707063061352,-500.0,0.00047671,31]
[313272765,1707063061362,-618.05009642,0.00047671,31]
[313272766,1707063061372,-215.90707209,0.00047671,31]
[313272767,1707063061381,-217.48835983,0.00047671,31]
[313272768,1707063061390,-500.0,0.00047671,31]
[313272769,1707063061400,-500.0,0.00047671,31]
[313272770,1707063061409,-583.81,0.00047671,10]
[313272771,1707063061420,-500.0,0.00047671,31]
[313272772,1707063061429,-500.0,0.00047671,31]
[313272773,1707063061439,-605.57490786,0.00047671,31]
[313272774,1707063061450,-1109.96,0.00047671,31]
[313272775,1707063061459,-1000.0,0.00047671,30]
[313272776,1707063061469,-500.0,0.00047671,31]
[313272777,1707063061479,-1000.0,0.00047671,60]
[313272778,1707063061489,-500.0,0.00047671,31]
[313272779,1707063061498,-500.0,0.00047671,10]
[313272780,1707063061507,-526.74,0.00047671,31]
[313272781,1707063061517,-212.68715419,0.00047671,31]
[313272782,1707063061526,-500.0,0.00047671,31]
[313272783,1707063061536,-618.2728501,0.00047671,31]
[313272784,1707063061545,-527.37982752,0.00047671,31]
[313272785,1707063061555,-500.0,0.00047671,31]
[313272786,1707063061564,-313.71865906,0.00047671,31]
[313272787,1707063061573,-500.0,0.00047671,31]
[313272788,1707063061583,-500.0,0.00047671,31]
[313272789,1707063061594,-522.26099223,0.00047671,31]
[313272790,1707063061603,-500.0,0.00047671,31]
[313272791,1707063061613,-615.59864605,0.00047671,31]
[313272792,1707063061623,-500.0,0.00047671,31]
[313272793,1707063061632,-500.0,0.00047671,31]
[313272794,1707063061641,-571.26954496,0.00047671,31]
[313272795,1707063061651,-4813.6,0.00047671,31]
[313272796,1707063061662,-587.95,0.00047671,31]
[313272797,1707063061673,-500.0,0.00047671,31]
[313272798,1707063061682,-500.0,0.00047671,31]
[313272799,1707063061692,-500.0,0.00047671,31]
[313272800,1707063061702,-500.0,0.00047671,31]
[313272801,1707063061711,-500.0,0.00047671,7]
[313272802,1707063061720,-500.0,0.00047671,31]
[313272803,1707063061730,-172.38373102,0.00047671,31]
[313272804,1707063061739,-506.77760263,0.00047671,31]
[313272805,1707063061749,-500.0,0.00047671,31]
[313272806,1707063061759,-603.51498044,0.00047671,31]
[313272807,1707063061769,-500.0,0.00047671,31]
[313272808,1707063061779,-500.0,0.00047671,31]
[313272809,1707063061789,-500.0,0.00047671,31]
[313272810,1707063061798,-500.0,0.00047671,31]
[313272811,1707063061807,-500.0,0.00047671,31]
[313272812,1707063061817,-500.0,0.00047671,31]
[313272813,1707063061826,-500.0,0.00047671,31]
[313272814,1707063061836,-500.0,0.00047671,31]
[313272815,1707063061845,-500.0,0.00047671,31]
[313272816,1707063061854,-500.0,0.00047671,31]
[313272817,1707063061863,-500.0,0.00047671,31]
[313272818,1707063061873,-500.0,0.00047671,31]
[313272819,1707063061882,-167.3394184,0.00047671,31]
[313272820,1707063061892,-500.0,0.00047671,31]
[313272821,1707063061902,-523.92014735,0.00047671,31]
[313272822,1707063061911,-636.29167138,0.00047671,31]
[313272823,1707063061921,-500.0,0.00047671,31]
[313272824,1707063061930,-500.0,0.00047671,31]
[313272825,1707063061940,-500.0,0.00047671,31]
[313272826,1707063061949,-526.64174942,0.00047671,31]
[313272827,1707063061958,-500.0,0.00047671,31]
[313272828,1707063061967,-2089.65,0.00047671,5]
[313272829,1707063061977,-2006.88,0.00047671,31]
[313272830,1707063061986,-500.0,0.00047671,31]
[313272831,1707063061996,-933.81,0.00047671,31]
[313272832,1707063062006,-500.0,0.00047671,31]
[313272833,1707063062015,-500.0,0.00047671,31]
[313272834,1707063062025,-620.67055771,0.00047671,31]
[313272835,1707063062034,-571.52,0.00047671,31]
[313272836,1707063062043,-201.53406227,0.00047671,31]
[313272837,1707063062052,-500.0,0.00047671,31]
[313272838,1707063062062,-500.0,0.00047671,31]
[313272839,1707063062071,-500.0,0.00047671,31]
[313272840,1707063062081,-500.0,0.00047671,31]
[313272841,1707063062091,-500.0,0.00047671,31]
[313272842,1707063062101,-3386.39,0.00047671,31]
[313272843,1707063062110,-500.0,0.00047671,31]
[313272844,1707063062119,-500.0,0.00047671,31]
[313272845,1707063062129,-567.04206657,0.00047671,31]
[313272846,1707063062139,-500.0,0.00047671,31]
[313272847,1707063062148,-216.09193756,0.00047671,31]
[313272848,1707063062157,-500.0,0.00047671,31]
[313272849,1707063062167,-500.0,0.00047671,31]
[313272850,1707063062176,-500.0,0.00047671,31]
[313272851,1707063062187,-540.19493385,0.00047671,31]
[313272852,1707063062198,-500.0,0.00047671,31]
[313272853,1707063062208,-500.0,0.00047671,31]
[313272854,1707063062219,-577.9461029,0.00047671,31]
[313272855,1707063062229,-500.0,0.00047671,31]
[313272856,1707063062241,-500.0,0.00047671,31]
[313272857,1707063062251,-500.0,0.00047671,31]
[313272858,1707063062261,-500.0,0.00047671,31]
[313272859,1707063062272,-500.0,0.00047671,31]
[313272860,1707063062283,-500.0,0.00047671,31]
[313272861,1707063062292,-500.0,0.00047671,31]
[313272862,1707063062302,-500.0,0.00047671,31]
[313272863,1707063062314,-500.0,0.00047671,31]
[313272864,1707063062324,-557.03376018,0.00047671,31]
[313272865,1707063062333,-535.79455805,0.00047671,31]
[313272866,1707063062343,-500.0,0.00047671,31]
[313272867,1707063062352,-758.68,0.00047671,31]
[313272868,1707063062362,-500.0,0.00047671,31]
[313272869,1707063062372,-500.0,0.00047671,31]
[313272870,1707063062382,-191.29175887,0.00047671,31]
[313272871,1707063062391,-500.0,0.00047671,31]
[313272872,1707063062402,-500.0,0.00047671,31]
[313272873,1707063062412,-500.0,0.00047671,31]
[313272874,1707063062422,-500.0,0.00047671,31]
[313272875,1707063062430,-500.0,0.00047671,31]
[313272876,1707063062440,-500.0,0.00047671,31]
[313272877,1707063062451,-500.0,0.00047671,31]
[313272878,1707063062460,-500.0,0.00047671,31]
[313272879,1707063062470,-500.0,0.00047671,31]
[313272880,1707063062481,-620.58983808,0.00047671,31]
[313272881,1707063062490,-583.05469131,0.00047671,31]
[313272882,1707063062500,-721.18,0.00047671,31]
[313272883,1707063062509,-4160.16,0.00047671,31]
[313272884,1707063062519,-500.0,0.00047671,31]
[313272885,1707063062528,-500.0,0.00047671,31]
[313272886,1707063062537,-500.0,0.00047671,31]
[313272887,1707063062548,-500.0,0.00047671,31]
[313272888,1707063062558,-500.0,0.00047671,31]
[313272889,1707063062567,-500.0,0.00047671,31]
[313272890,1707063062578,-645.13665036,0.00047671,31]
[313272891,1707063062587,-211.73907875,0.00047671,31]
[313272892,1707063062596,-500.0,0.00047671,31]
[313272893,1707063062606,-500.0,0.00047671,31]
[313272894,1707063062615,-500.0,0.00047671,31]
[313272895,1707063062625,-500.0,0.00047671,31]
[313272896,1707063062634,-500.0,0.00047671,31]
[313272897,1707063062643,-602.54542585,0.00047671,31]
[313272898,1707063062653,-500.0,0.00047671,31]
[313272899,1707063062663,-500.0,0.00047671,31]
[313272900,1707063062673,-500.0,0.00047671,31]
[313272901,1707063062682,-298.09206171,0.00047671,31]
[313272902,1707063062693,-500.0,0.00047671,31]
[313272903,1707063062703,-500.0,0.00047671,31]
[313272904,1707063062713,-500.0,0.00047671,31]
[313272905,1707063062723,-500.0,0.00047671,31]
[313272906,1707063062733,-1252.23,0.00047671,31]
[313272907,1707063062743,-500.0,0.00047671,31]
[313272908,1707063062752,-500.0,0.00047671,31]
[313272909,1707063062762,-193.59932162,0.00047671,31]
[313272910,1707063062883,-1000.0,0.00047671,7]
[313272911,1707063062893,-500.0,0.00047671,31]
[313272912,1707063062903,-2478.43,0.00047671,5]
[313272913,1707063062912,-500.0,0.00047671,31]
[313272914,1707063062921,-586.96,0.00047671,31]
[313272915,1707063062931,-1000.0,0.00047671,7]
[313272916,1707063062940,-500.0,0.00047671,31]
[313272917,1707063062950,-523.43,0.00047671,31]
[313272918,1707063062960,-500.0,0.00047671,31]
[313272919,1707063062969,-383.40927461,0.00047671,31]
[313272920,1707063062978,-500.0,0.00047671,31]
[313272921,1707063062987,-500.0,0.00047671,31]
[313272922,1707063062996,-500.0,0.00047671,31]
[313272923,1707063063006,-500.0,0.00047671,31]
[313272924,1707063063015,-827.2,0.00047671,31]
[313272925,1707063063024,-500.0,0.00047671,31]
[313272926,1707063063034,-500.0,0.00047671,31]
[313272927,1707063063044,-500.0,0.00047671,31]
[313272928,1707063063053,-500.0,0.00047671,31]
[313272929,1707063063063,-500.0,0.00047671,31]
[313272930,1707063063072,-513.4420665,0.00047671,31]
[313272931,1707063063082,-500.0,0.00047671,31]
[313272932,1707063063091,-500.0,0.00047671,31]
[313272933,1707063063101,-500.0,0.00047671,31]
[313272934,1707063063110,-500.0,0.00047671,31]
[313272935,1707063063120,-500.0,0.00047671,31]
[313272936,1707063063129,-500.0,0.00047671,31]
[313272937,1707063063138,-500.0,0.00047671,31]
[313272938,1707063063148,-500.0,0.00047671,31]
[313272939,1707063063157,-500.0,0.00047671,31]
[313272940,1707063063167,-532.20424103,0.00047671,31]
[313272941,1707063063176,-230.62330557,0.00047671,31]
[313272942,1707063063185,-500.0,0.00047671,31]
[313272943,1707063063194,-812.77,0.00047671,31]
[313272944,1707063063204,-500.0,0.00047671,31]
[313272945,1707063063214,-500.0,0.00047671,31]
[313272946,1707063063222,-553.90650053,0.00047671,31]
[313272947,1707063063232,-221.23753597,0.00047671,31]
[313272948,1707063063245,-500.0,0.00047671,31]
[313272949,1707063063255,-500.0,0.00047671,31]
[313272950,1707063063264,-500.0,0.00047671,31]
[313272951,1707063063273,-557.20148936,0.00047671,31]
[313272952,1707063063283,-228.952979,0.00047671,31]
[313272953,1707063063292,-631.49548103,0.00047671,31]
[313272954,1707063063302,-556.84180312,0.00047671,31]
[313272955,1707063063311,-1238.33,0.00047671,31]
[313272956,1707063063322,-500.0,0.00047671,31]
[313272957,1707063063332,-500.0,0.00047671,31]
[313272958,1707063063342,-300.53182954,0.00047671,31]
[313272959,1707063063351,-500.0,0.00047671,31]
[313272960,1707063063360,-571.52580599,0.00047671,31]
[313272961,1707063063370,-556.42268988,0.00047671,31]
[313272962,1707063063379,-500.0,0.00047671,31]
[313272963,1707063063389,-1047.55,0.00047671,31]
[313272964,1707063063399,-500.0,0.00047671,31]
[313272965,1707063063408,-19897.31683184,0.00047693,4]
[313272966,1707063063434,-308.16806821,0.00047693,4]
[313272967,1707063063446,-524.32057752,0.00047693,4]
[313272968,1707063063458,-465.82650474,0.00047693,4]
[313272969,1707063063472,-3021.42078,0.00047693,4]
[313272970,1707063063498,-828.56922861,0.00047693,4]
[313272971,1707063063510,-21459.44416083,0.00047693,4]
[313272972,1707063063521,-1507.98696737,0.00047693,4]
[313272973,1707063063533,-52140.14705675,0.00047693,4]
[313272974,1707063063542,-200.0,0.000477,27]
[313272975,1707063063552,-213.36,0.000477,7]
[313272976,1707063063561,-150.0,0.000477,19]
[313272977,1707063063570,-100000.0,0.0004773,4]
[313272978,1707063063580,-32373.09412007,0.00047753,7]
[313272979,1707063063589,-3705.21921134,0.00047753,7]
[313272980,1707063063598,-3705.21921134,0.00047753,7]
[313272981,1707063063608,-1337.58648805,0.00047754,7]
[313272982,1707063063617,-1850.05426386,0.00047755,7]
[313272983,1707063063626,-24642.00813065,0.00047761,7]
[313272984,1707063063636,-3705.21921134,0.00047762,7]
[313272985,1707063063645,-112934.29896401,0.00047763,7]
[313272986,1707063063657,-1768.45637484,0.00047763,7]
[313272987,1707063063668,-3206.53187065,0.00047763,7]
[313272988,1707063063680,-638.2778997,0.00047763,7]
[313272989,1707063063697,-491.35519383,0.00047763,7]
[313272990,1707063063709,-2362.165,0.00047763,7]
[313272991,1707063063793,-162384.74745769,0.00047763,7]
[313272992,1707063063808,-2821.00556573,0.00047763,7]
[313272993,1707063063937,-279.37593712,0.00022886,2]
[313272994,1707063063947,-206.95528197,0.00041058,13]
[313272995,1707063063957,-675.32657323,0.00047763,7]
[313272996,1707063063969,-325.71932272,0.00047763,7]
[313272997,1707063063981,-209400.96044826,0.00047763,7]
[313272998,1707063063991,-1337.58648805,0.00047764,7]
[313272999,1707063064001,-32373.09412007,0.00047765,7]
[313273000,1707063064010,-24642.00813065,0.0004777,7]
[313273001,1707063064019,-16898.06056485,0.00047773,7]
[313273002,1707063064034,-907.23067622,0.00047773,7]
[313273003,1707063064045,-914.22804005,0.00047773,7]
[313273004,1707063064056,-222490.38244664,0.00047773,7]
[313273005,1707063064068,-359.00939672,0.00047773,7]
[313273006,1707063064080,-7533.01730136,0.00047773,7]
[313273007,1707063064092,-648.91636192,0.00047773,7]
[313273008,1707063064104,-1303.12237507,0.00047773,7]
[313273009,1707063082542,-221.6789,0.00022661,2]
[313273010,1707063082565,-279.3759371,0.00022888,2]
[313273011,1707063082586,-98.9451629,0.0002289,2]
[313273027,1707063742665,168.75361116,5e-05,2]
[313273028,1707063788938,155.0,5e-05,2]
[313273029,1707063790097,155.0,0.0002,2]
[313273030,1707063792497,155.19994696,5e-05,2]
[313273031,1707063795939,155.0,5e-05,2]
[313273032,1707063797560,1036.55041269,0.00015,2]
[313273033,1707063802371,155.0,5e-05,2]
[313273034,1707063804187,155.0,5e-05,2]
[313273035,1707063804710,155.0,5e-05,2]
[313273036,1707063806718,155.0,5e-05,2]
[313273037,1707063809867,157.70832548,5e-05,2]
[313273038,1707063810093,155.0,0.0002,2]
[313273039,1707063812483,156.65085918,5e-05,2]
[313273040,1707063812951,155.0,5e-05,2]
[313273041,1707063819539,162.84342798,0.00015,2]
[313273042,1707063819738,155.0,5e-05,2]
[313273043,1707063820686,155.0,5e-05,2]
[313273044,1707063822194,155.0,5e-05,2]
[313273045,1707063822697,155.0,5e-05,2]
[313273046,1707063826371,155.0,5e-05,2]
[313273047,1707063828094,155.0,0.0002,2]
[313273048,1707063828939,155.0,5e-05,2]
[313273049,1707063829859,157.23956064,5e-05,2]
[313273050,1707063838725,309.95731837,5e-05,2]
[313273051,1707063840684,155.0,5e-05,2]
[313273052,1707063842196,155.0,5e-05,2]
[313273053,1707063843745,155.0,5e-05,2]
[313273054,1707063844092,155.0,0.0002,2]
[313273055,1707063846366,155.0,5e-05,2]
[313273056,1707063847855,157.23956064,5e-05,2]
[313273057,1707063852937,155.0,5e-05,2]
[313273058,1707063858701,186.64806482,5e-05,2]
[313273059,1707063865741,190.78931201,5e-05,2]
[313273060,1707063866397,155.0,5e-05,2]
[313273061,1707063867728,701.47543976,5e-05,2]
[313273062,1707063869860,157.20344513,5e-05,2]
[313273063,1707063870942,156.01643056,5e-05,2]
[313273064,1707063879146,535.04346075,0.00019,2]
[313273065,1707063899150,637.30190672,0.00019,2]
[313273066,1707063908148,232.84131917,0.000119,2]
[313273067,1707063909113,232.84131917,0.000119,2]
[313273068,1707063909525,232.84131917,0.000119,2]
[313273069,1707063910003,232.84131917,0.000119,2]
[313273070,1707063910506,232.84131917,0.000119,2]
[313273071,1707063911037,232.84131917,0.000119,2]
[313273072,1707063911550,232.84131917,0.000119,2]
[313273073,1707063912019,232.84131917,0.000119,2]
[313273074,1707063912468,232.84131917,0.000119,2]
[313273075,1707063912945,232.84131,0.000119,2]
[313273076,1707063949489,155.0,0.000119,2]
[313273077,1707063950190,155.0,0.000119,2]
[313273078,1707063965481,155.0,0.000119,2]
[313273079,1707063966186,155.0,0.000119,2]
[313273080,1707063972539,155.0,0.000119,2]
[313273082,1707063981480,164.88744246,0.000119,2]
[313273083,1707063982475,155.20448562,0.000119,2]
[313273084,1707063988559,157.9404551,0.000119,2]
[313273100,1707064231597,-155.0,0.00022655,2]
[313273101,1707064231611,-155.0,0.00022655,2]
[313273102,1707064231621,-283.83163888,0.00022655,2]
[313273103,1707064231630,-2661.54429398,0.00022656,2]
[313273104,1707064231651,-275.03117188,0.00022656,2]
[313273105,1707064231667,-264.33978514,0.00022656,2]
[313273106,1707064231677,-421.40931563,0.00022656,2]
[313273107,1707064231687,-7195.05089923,0.00022667,2]
[313273108,1707064231698,-450.0,0.00022667,2]
[313273109,1707064231712,-166.08024268,0.00022667,2]
[313273110,1707064231723,-159.15980373,0.00022669,2]
[313273111,1707064231732,-150.0,0.00022695,2]
[313273112,1707064231741,-45.44509214,0.000227,2]
[313273113,1707064231768,-347.70502701,0.000227,2]
[313273114,1707064231777,-152.29497299,0.0002289,2]
[313273143,1707064237594,-544.80509365,0.00022654,2]
[313273144,1707064237605,-83.07896244,0.0002289,2]
[313273145,1707064237618,-499.99,0.00024,2]
[313273146,1707064237627,-201.83380007,0.00024,2]
[313273147,1707064237636,-210.0,0.00024965,2]
[313273148,1707064237646,-660.36,0.00024966,2]
[313273149,1707064237656,-1906.40505966,0.00025744,2]
[313273150,1707064237666,-227.87991488,0.00025745,2]
[313273151,1707064237682,-76.7075173,0.00025745,2]
[313273152,1707064237692,-336.62,0.00025746,2]
[313273153,1707064237702,-250.0,0.0002586,2]
[313273154,1707064237711,-1783.66,0.00026161,3]
[313273155,1707064237721,-896.52,0.00026215,2]
[313273156,1707064237730,-798.5074144,0.0002629,2]
[313273157,1707064237767,-383.71237763,0.0002629,2]
[313273158,1707064237778,-857.05020797,0.0002629,2]
[313273159,1707064237788,-23900.0,0.00026299,2]
[313273160,1707064237797,-250.0,0.00026321,2]
[313273161,1707064237808,-933.03,0.00026473,2]
[313273162,1707064237818,-2740.24819119,0.00026482,2]
[313273163,1707064237828,-359032.23931322,0.00026809,2]
[313273164,1707064237838,-753.56825258,0.0002681,2]
[313273165,1707064237848,-8515.81854775,0.0002681,2]
[313273166,1707064237857,-4909.83342206,0.0002681,2]
[313273167,1707064237867,-500.0,0.00027,7]
[313273168,1707064237876,-500.0,0.00027,7]
[313273170,1707064237885,-500.0,0.00027,7]
[313273172,1707064237894,-150.0,0.00027163,2]
[313273174,1707064237903,-186.0,0.00027461,2]
[313273176,1707064237911,-187.25,0.00027774,2]
[313273178,1707064237921,-2039.27,0.00027934,2]
[313273180,1707064237929,-336.62,0.0002801,2]
[313273182,1707064237938,-1826.89,0.00028626,2]
[313273184,1707064237947,-3146.0,0.000288,2]
[313273186,1707064237956,-190.76,0.00028833,2]
[313273188,1707064237965,-25983.0,0.000289,2]
[313273190,1707064237975,-168.52,0.00028973,2]
[313273192,1707064237984,-2000.0,0.00029264,2]
[313273193,1707064237993,-896.52,0.00029492,2]
[313273195,1707064238002,-150.0,0.00029539,2]